bitfinex/quotes_BTCUSD_20240803
["timestamp","ask_amount","ask_price","bid_price","bid_amount"]
[1722670199324,0.00083,61804.0,61803.0,1.00609853]
[1722670199790,0.00183,61804.0,61803.0,1.00609853]
[1722670200303,0.00083,61804.0,61803.0,1.00609853]
[1722670200576,0.00183,61804.0,61803.0,1.01009853]
[1722670200830,0.00183,61804.0,61803.0,0.76739253]
[1722670201086,0.00283,61804.0,61803.0,0.77539253]
[1722670201318,0.00283,61804.0,61803.0,0.765198]
[1722670202310,0.00283,61804.0,61803.0,0.76539253]
[1722670202542,0.00283,61804.0,61803.0,0.83159253]
[1722670203547,0.01543444,61804.0,61803.0,0.83159253]
[1722670205216,0.01543444,61804.0,61803.0,0.82159253]
[1722670205440,0.01543444,61804.0,61803.0,0.83159253]
[1722670206595,0.01543451,61804.0,61803.0,0.83159253]
[1722670207331,0.01543451,61804.0,61803.0,1.07429853]
[1722670209880,0.01543451,61804.0,61803.0,1.08416355]
[1722670210131,0.01543451,61804.0,61803.0,0.83145755]
[1722670210901,0.01543451,61804.0,61803.0,1.07416355]
[1722670211196,0.01543451,61804.0,61803.0,0.83145755]
[1722670211661,0.00283,61804.0,61803.0,0.84145755]
[1722670211907,0.00283,61804.0,61803.0,1.08416355]
[1722670212390,0.00283,61804.0,61803.0,0.84145755]
[1722670212882,0.00283,61804.0,61803.0,1.08416355]
[1722670213125,0.00283,61804.0,61803.0,0.84145755]
[1722670213367,0.00283,61804.0,61803.0,0.83145755]
[1722670214113,0.00283,61804.0,61803.0,1.07416355]
[1722670214356,0.00283,61804.0,61803.0,0.84145755]
[1722670214609,0.00283,61804.0,61803.0,1.08416355]
[1722670214844,0.00283,61804.0,61803.0,0.84145755]
[1722670215095,0.00283,61804.0,61803.0,0.83145755]
[1722670215806,0.00283,61804.0,61803.0,1.07416355]
[1722670216046,0.00283,61804.0,61803.0,0.84145755]
[1722670216297,0.00283,61804.0,61803.0,0.83145755]
[1722670216558,0.00283,61804.0,61803.0,0.76525755]
[1722670217034,0.01543474,61804.0,61803.0,0.76525755]
[1722670217269,0.00283,61804.0,61803.0,0.77525755]
[1722670217598,0.00283,61804.0,61803.0,0.76525755]
[1722670217827,0.00283,61804.0,61803.0,0.77525755]
[1722670219054,0.00273751,61804.0,61803.0,0.77525755]
[1722670219309,0.40945613,61804.0,61803.0,0.01302753]
[1722670219524,0.40945613,61804.0,61803.0,0.012833]
[1722670219525,1.16078014,61804.0,61803.0,0.012833]
[1722670219781,0.94107814,61804.0,61803.0,0.012833]
[1722670220280,0.94007814,61804.0,61803.0,0.008833]
[1722670220550,0.94007814,61804.0,61803.0,0.004833]
[1722670220551,0.93907814,61804.0,61803.0,0.004833]
[1722670220806,0.94007814,61804.0,61803.0,0.004833]
[1722670221074,0.94107814,61804.0,61803.0,0.011833]
[1722670221306,0.94107814,61804.0,61803.0,0.004833]
[1722670221307,1.08671709,61804.0,61803.0,0.004833]
[1722670221540,1.09271709,61804.0,61803.0,0.005833]
[1722670221812,1.18978014,61804.0,61803.0,0.005833]
[1722670222082,0.94523955,61804.0,61803.0,0.005833]
[1722670222312,1.0908514,61804.0,61803.0,0.005833]
[1722670222573,1.3325534,61804.0,61803.0,0.001833]
[1722670222829,1.3395534,61804.0,61803.0,0.001833]
[1722670224395,1.19394155,61804.0,61803.0,0.001833]
[1722670224811,1.13774155,61804.0,61803.0,0.001833]
[1722670225652,1.1378628,61804.0,61803.0,0.001833]
[1722670226067,0.65243792,61804.0,61803.0,0.001833]
[1722670226503,0.62936338,61804.0,61803.0,0.00202753]
[1722670226717,0.62970127,61804.0,61803.0,0.00202753]
[1722670227131,0.75105227,61804.0,61803.0,0.00202753]
[1722670227333,0.62988468,61804.0,61803.0,0.00202753]
[1722670228179,0.62988468,61804.0,61803.0,0.001833]
[1722670228788,0.62922588,61804.0,61803.0,0.00202753]
[1722670229032,0.50787488,61804.0,61803.0,0.00202753]
[1722670229414,0.50756154,61804.0,61803.0,0.00202753]
[1722670229624,0.628838,61804.0,61803.0,0.00202753]
[1722670230665,0.750189,61804.0,61803.0,0.00202753]
[1722670231284,0.62891254,61804.0,61803.0,0.00202753]
[1722670231494,0.62891254,61804.0,61803.0,0.001833]
[1722670231700,0.62891254,61804.0,61803.0,0.00202753]
[1722670231894,0.75015607,61804.0,61803.0,0.00202753]
[1722670232313,1.13731654,61804.0,61803.0,0.001833]
[1722670232984,1.12819801,61804.0,61803.0,0.001833]
[1722670235549,0.80399601,61804.0,61803.0,0.001833]
[1722670235758,0.71415932,61804.0,61803.0,0.001833]
[1722670236374,0.65972897,61804.0,61803.0,0.001833]
[1722670236680,0.35477584,61804.0,61803.0,0.12338053]
[1722670236863,0.17219675,61804.0,61803.0,0.60879253]
[1722670237070,0.17219675,61804.0,61800.0,0.00414926]
[1722670237071,1.39120747,61803.0,61800.0,0.000913]
[1722670237272,1.54866671,61803.0,61802.0,0.606775]
[1722670238461,1.55366671,61803.0,61802.0,0.607775]
[1722670238863,1.39620747,61803.0,61802.0,0.607775]
[1722670239063,1.40220747,61803.0,61802.0,0.607775]
[1722670239497,1.39620747,61803.0,61802.0,0.607775]
[1722670240864,1.40220747,61803.0,61802.0,0.607775]
[1722670241470,1.40220747,61803.0,61802.0,0.764375]
[1722670242206,1.40220747,61803.0,61802.0,0.754375]
[1722670249110,1.40220747,61803.0,61802.0,0.764375]
[1722670250519,1.40220747,61803.0,61802.0,0.754375]
[1722670251962,1.40220747,61803.0,61802.0,0.755288]
[1722670252159,1.40220747,61803.0,61802.0,0.765288]
[1722670252771,1.40220747,61803.0,61802.0,1.007998]
[1722670253610,1.39620747,61803.0,61802.0,1.007998]
[1722670253969,1.39120747,61803.0,61802.0,1.006998]
[1722670254194,1.39120747,61803.0,61802.0,0.996998]
[1722670254405,1.39120747,61803.0,61802.0,0.757288]
[1722670255772,1.39120747,61803.0,61802.0,0.690988]
[1722670262072,1.39120747,61803.0,61802.0,0.933698]
[1722670263124,1.39120747,61803.0,61802.0,0.943698]
[1722670263563,1.39120747,61803.0,61802.0,0.933698]
[1722670263765,1.39120747,61803.0,61802.0,0.943698]
[1722670264385,1.39120747,61803.0,61802.0,1.007698]
[1722670265209,1.39120747,61803.0,61802.0,1.005698]
[1722670265484,1.39120747,61803.0,61802.0,1.006698]
[1722670265738,1.39120747,61803.0,61802.0,1.007698]
[1722670266142,1.39120747,61803.0,61802.0,1.006698]
[1722670267229,1.39220747,61803.0,61802.0,1.011698]
[1722670267381,1.39220747,61803.0,61802.0,1.009698]
[1722670267791,1.39320747,61803.0,61802.0,1.017698]
[1722670269302,1.39320747,61803.0,61802.0,1.260408]
[1722670269569,1.39320747,61803.0,61802.0,1.360408]
[1722670269949,1.39320747,61803.0,61802.0,1.362408]
[1722670270548,1.39301273,61803.0,61802.0,1.360408]
[1722670270754,1.39301273,61803.0,61802.0,1.362408]
[1722670271263,1.39301273,61803.0,61802.0,1.360408]
[1722670271459,1.39301273,61803.0,61802.0,1.362408]
[1722670271874,1.39301273,61803.0,61802.0,1.48179794]
[1722670272083,1.39301273,61803.0,61802.0,1.47979794]
[1722670272442,1.39201273,61803.0,61802.0,1.47479794]
[1722670272646,1.39201273,61803.0,61802.0,1.47279794]
[1722670274016,1.39301273,61803.0,61802.0,1.48379794]
[1722670274348,1.39301273,61803.0,61802.0,1.420608]
[1722670274569,1.39301273,61803.0,61802.0,1.5399718]
[1722670275182,1.39301273,61803.0,61802.0,1.346608]
[1722670275367,1.39301273,61803.0,61802.0,1.356608]
[1722670276708,1.39301273,61803.0,61802.0,1.346608]
[1722670277228,1.39301273,61803.0,61802.0,1.356608]
[1722670277580,1.39301273,61803.0,61802.0,1.346608]
[1722670277977,1.39301273,61803.0,61802.0,1.356608]
[1722670278178,1.39301273,61803.0,61802.0,1.103898]
[1722670280217,1.39301273,61803.0,61802.0,1.113898]
[1722670285052,1.39384273,61803.0,61802.0,1.113898]
[1722670286622,1.39384273,61803.0,61802.0,1.169198]
[1722670286823,1.39384273,61803.0,61802.0,1.179198]
[1722670287504,1.39384273,61803.0,61802.0,1.169198]
[1722670287645,1.39384273,61803.0,61802.0,1.179198]
[1722670289780,1.39384273,61803.0,61802.0,1.29863155]
[1722670291803,0.39384273,61803.0,61802.0,1.179198]
[1722670300513,0.39384273,61803.0,61802.0,1.103898]
[1722670301902,0.39384273,61803.0,61802.0,1.22331256]
[1722670302242,0.39384273,61803.0,61802.0,1.23331256]
[1722670306326,0.39384273,61803.0,61802.0,1.22331256]
[1722670306928,0.39384273,61803.0,61802.0,1.22322513]
[1722670309235,0.39384273,61803.0,61802.0,1.23322513]
[1722670310576,0.39384273,61803.0,61802.0,1.113898]
[1722670310803,0.39384273,61803.0,61802.0,1.22316557]
[1722670311371,0.39384273,61803.0,61802.0,1.23316557]
[1722670314439,0.39384273,61803.0,61802.0,1.23319998]
[1722670317946,0.39384273,61803.0,61802.0,1.23325476]
[1722670320954,0.39384273,61803.0,61802.0,1.113898]
[1722670321165,0.39384273,61803.0,61802.0,1.23328912]
[1722670321595,0.39384273,61803.0,61802.0,1.23319326]
[1722670322830,0.39384273,61803.0,61802.0,1.23323826]
[1722670327799,0.39384273,61803.0,61802.0,1.113898]
[1722670328004,0.39384273,61803.0,61802.0,1.47554419]
[1722670328637,0.39384273,61803.0,61802.0,1.71610343]
[1722670329623,0.39384273,61803.0,61802.0,1.59716724]
[1722670329849,0.0653,61815.0,61812.0,0.01]
[1722670330081,0.04856027,61821.0,61812.0,0.01]
[1722670330082,0.53781164,61824.0,61822.0,0.363948]
[1722670330323,0.1258,61826.0,61822.0,0.915412]
[1722670330541,0.1258,61826.0,61822.0,1.158044]
[1722670330786,0.1258,61826.0,61822.0,1.258044]
[1722670331279,0.1258,61826.0,61822.0,1.37900847]
[1722670331516,0.1258,61826.0,61822.0,1.79893149]
[1722670331760,0.00183,61823.0,61822.0,1.82093149]
[1722670332003,0.00183,61823.0,61822.0,1.94848923]
[1722670332248,0.00083,61823.0,61822.0,1.93648923]
[1722670332453,0.00183,61823.0,61822.0,1.94855047]
[1722670332915,0.00183,61823.0,61822.0,1.96255047]
[1722670333787,0.00083,61823.0,61822.0,1.95055047]
[1722670334208,0.00083,61823.0,61822.0,1.93655047]
[1722670334630,0.00083,61823.0,61822.0,1.95055047]
[1722670334855,0.00083,61823.0,61822.0,1.96455047]
[1722670335074,0.00083,61823.0,61822.0,1.85547929]
[1722670335281,0.00083,61823.0,61822.0,1.97849062]
[1722670336391,0.00083,61823.0,61822.0,3.25129062]
[1722670336606,0.00083,61823.0,61822.0,3.12827929]
[1722670336815,0.00083,61823.0,61822.0,3.25214439]
[1722670337041,0.00083,61823.0,61822.0,3.12627929]
[1722670337675,0.00083,61823.0,61822.0,2.88364729]
[1722670338391,0.00083,61823.0,61822.0,2.88564729]
[1722670338594,0.00083,61823.0,61822.0,2.88364729]
[1722670341144,0.00083,61823.0,61822.0,2.31595605]
[1722670342274,0.00083,61823.0,61822.0,1.04315605]
[1722670343416,0.00083,61823.0,61822.0,1.05315605]
[1722670347276,0.00083,61823.0,61822.0,1.29578805]
[1722670348921,0.00083,61823.0,61822.0,1.47324729]
[1722670353693,0.00083,61823.0,61822.0,1.22958805]
[1722670353902,0.00083,61823.0,61822.0,1.28578805]
[1722670354922,0.00083,61823.0,61822.0,1.29578805]
[1722670356356,0.00083,61823.0,61822.0,1.4195471]
[1722670362255,0.00083,61823.0,61822.0,1.4095471]
[1722670362700,0.00083,61823.0,61822.0,1.4195471]
[1722670362919,0.00083,61823.0,61822.0,1.4095471]
[1722670363423,0.00083,61823.0,61822.0,1.4195471]
[1722670363657,0.00083,61823.0,61822.0,1.4095471]
[1722670363907,0.00083,61823.0,61822.0,1.41982789]
[1722670364134,0.00083,61823.0,61822.0,1.40982789]
[1722670364366,0.00083,61823.0,61822.0,1.56732789]
[1722670364802,0.00083,61823.0,61822.0,1.55732789]
[1722670365038,0.00083,61823.0,61822.0,1.49262789]
[1722670365286,0.00083,61823.0,61822.0,1.36858805]
[1722670365509,0.00083,61823.0,61822.0,1.49245507]
[1722670368281,0.00083,61823.0,61822.0,1.4926222]
[1722670368735,0.00083,61823.0,61822.0,1.49263331]
[1722670369463,0.00083,61823.0,61822.0,1.40983331]
[1722670372459,0.00083,61823.0,61822.0,1.28578805]
[1722670372682,0.00083,61823.0,61822.0,1.40982153]
[1722670374400,0.00083,61823.0,61822.0,1.41982153]
[1722670375600,0.0611,61830.0,61829.0,0.121302]
[1722670375805,0.0611,61830.0,61829.0,0.54413948]
[1722670376012,0.0611,61830.0,61829.0,1.12934748]
[1722670376873,0.0611,61830.0,61829.0,1.13934748]
[1722670377520,0.0611,61830.0,61829.0,1.13948194]
[1722670377721,0.0611,61830.0,61829.0,1.15148194]
[1722670378093,0.1427,61839.0,61829.0,0.54497194]
[1722670378314,0.1427,61839.0,61838.0,0.177484]
[1722670378547,0.1427,61839.0,61838.0,0.420053]
[1722670378759,0.1427,61839.0,61838.0,0.662622]
[1722670380454,0.1427,61839.0,61838.0,0.905191]
[1722670380966,0.1427,61839.0,61838.0,0.907191]
[1722670382253,0.14353,61839.0,61838.0,0.907191]
[1722670382458,0.14353,61839.0,61838.0,0.911191]
[1722670382668,0.14353,61839.0,61838.0,0.919191]
[1722670386456,0.06233,61839.0,61838.0,0.919191]
[1722670388972,0.06233,61839.0,61838.0,0.92864155]
[1722670390655,0.00083,61839.0,61838.0,0.92864155]
[1722670398294,0.14913,61839.0,61838.0,0.38730355]
[1722670398506,0.14913,61839.0,61838.0,0.014]
[1722670398730,0.30658924,61839.0,61838.0,0.014]
[1722670398938,0.35509402,61839.0,61838.0,0.014]
[1722670399563,0.47637602,61839.0,61838.0,0.014]
[1722670399786,1.15556624,61839.0,61838.0,0.014]
[1722670400029,1.29037522,61839.0,61838.0,0.014]
[1722670400866,1.29037522,61839.0,61838.0,0.006]
[1722670401318,1.29037522,61839.0,61838.0,0.007]
[1722670401557,1.21176624,61839.0,61838.0,0.006]
[1722670401765,1.11321457,61839.0,61838.0,0.007]
[1722670402422,1.11321457,61839.0,61838.0,0.001]
[1722670402423,0.99199452,61839.0,61838.0,0.001]
[1722670402642,0.0654,61832.0,61828.0,0.121303]
[1722670402876,0.00157439,61830.0,61829.0,0.121302]
[1722670403090,0.15903363,61830.0,61828.0,0.121304]
[1722670403306,0.15745924,61829.0,61828.0,0.121304]
[1722670404799,0.0654,61832.0,61829.0,0.121301]
[1722670405008,0.0654,61832.0,61830.0,0.3639]
[1722670405009,0.00157439,61831.0,61830.0,0.3639]
[1722670405854,0.0654,61832.0,61831.0,0.363894]
[1722670406072,0.0654,61832.0,61831.0,0.66269]
[1722670406702,0.0654,61837.0,61833.0,0.242588]
[1722670406920,0.00157439,61835.0,61834.0,0.242584]
[1722670407145,0.00157439,61835.0,61834.0,0.121292]
[1722670408249,0.00157439,61835.0,61834.0,0.363876]
[1722670408461,0.00157439,61835.0,61834.0,0.124292]
[1722670408873,0.00157439,61835.0,61834.0,0.366876]
[1722670409732,0.00157439,61835.0,61834.0,0.367876]
[1722670411405,0.00157439,61835.0,61834.0,0.125292]
[1722670411609,0.00157439,61835.0,61834.0,0.367876]
[1722670412900,0.15745924,61836.0,61835.0,0.363871]
[1722670412901,0.00157439,61836.0,61835.0,0.363871]
[1722670413108,0.00157439,61836.0,61835.0,0.606452]
[1722670413379,0.0654,61837.0,61836.0,0.363865]
[1722670413618,0.0654,61837.0,61836.0,0.606442]
[1722670414262,0.06512858,61837.0,61836.0,0.363865]
[1722670414518,0.06512858,61837.0,61836.0,0.606442]
[1722670414754,0.06512858,61837.0,61836.0,0.662642]
[1722670414979,0.00083,61839.0,61838.0,0.363853]
[1722670415193,0.00083,61839.0,61838.0,0.606422]
[1722670415617,0.00083,61839.0,61838.0,0.363853]
[1722670416364,0.00383,61839.0,61838.0,0.363853]
[1722670417191,0.06453,61839.0,61838.0,0.363853]
[1722670419283,0.06453,61839.0,61838.0,0.606422]
[1722670419489,0.06453,61839.0,61838.0,0.363853]
[1722670419690,0.00383,61839.0,61838.0,0.606422]
[1722670420478,0.00383,61839.0,61838.0,0.848991]
[1722670421596,0.00083,61839.0,61838.0,0.848991]
[1722670421797,0.00083,61839.0,61838.0,0.612422]
[1722670422041,0.00083,61839.0,61838.0,0.620422]
[1722670432261,0.07412765,61839.0,61838.0,0.620422]
[1722670435834,0.07412765,61839.0,61838.0,0.377853]
[1722670436040,0.07412765,61839.0,61838.0,0.014]
[1722670436041,0.15442765,61839.0,61838.0,0.014]
[1722670436445,0.15442792,61839.0,61838.0,0.014]
[1722670436671,0.14183,61839.0,61838.0,0.014]
[1722670437828,0.14183,61839.0,61838.0,0.135284]
[1722670438824,0.14183,61839.0,61838.0,0.014]
[1722670439468,0.14183,61839.0,61838.0,0.135284]
[1722670439827,0.14733,61839.0,61838.0,0.014]
[1722670440230,0.14733,61839.0,61838.0,0.135284]
[1722670440437,0.14733,61839.0,61838.0,0.377853]
[1722670440438,0.06703,61839.0,61838.0,0.377853]
[1722670440650,0.00083,61839.0,61838.0,0.620422]
[1722670440862,0.00083,61839.0,61838.0,0.682122]
[1722670441078,0.00083,61839.0,61838.0,1.024691]
[1722670442168,0.00083,61839.0,61838.0,1.018691]
[1722670442376,0.00083,61839.0,61838.0,1.010691]
[1722670442592,0.00083,61839.0,61838.0,1.022691]
[1722670442820,0.00083,61839.0,61838.0,1.036691]
[1722670443666,0.00083,61839.0,61838.0,1.116891]
[1722670449058,0.00083,61839.0,61838.0,1.36946]
[1722670449291,0.00157439,61848.0,61847.0,0.121266]
[1722670449518,0.0004,61850.0,61847.0,0.121266]
[1722670449519,0.00157439,61849.0,61848.0,0.606325]
[1722670449725,0.0004,61850.0,61849.0,0.363789]
[1722670449933,0.0004,61850.0,61849.0,0.848841]
[1722670452124,0.0004,61850.0,61849.0,0.856841]
[1722670452600,0.0004,61850.0,61849.0,0.867841]
[1722670454938,0.0004,61850.0,61849.0,0.859841]
[1722670455389,0.0004,61850.0,61849.0,0.867841]
[1722670455797,0.0004,61850.0,61849.0,0.859841]
[1722670455990,0.0004,61850.0,61849.0,0.848841]
[1722670456200,0.0004,61850.0,61849.0,0.874841]
[1722670462824,0.0004,61850.0,61849.0,1.117367]
[1722670462994,0.0004,61850.0,61849.0,1.363167]
[1722670463852,0.0004,61850.0,61849.0,1.337167]
[1722670464136,0.0004,61850.0,61849.0,1.351167]
[1722670464364,0.0004,61850.0,61849.0,1.365167]
[1722670465011,0.0004,61850.0,61849.0,1.421367]
[1722670466264,0.0004,61850.0,61849.0,1.431367]
[1722670466410,0.0004,61850.0,61849.0,1.73306143]
[1722670467089,0.0004,61850.0,61849.0,1.61082624]
[1722670467294,0.0004,61850.0,61849.0,1.97579201]
[1722670468210,0.00083,61851.0,61850.0,1.446571]
[1722670468456,0.00083,61860.0,61859.0,0.419929]
[1722670468663,0.00083,61860.0,61859.0,1.328087]
[1722670470160,0.00083,61860.0,61859.0,1.342087]
[1722670470369,0.00083,61860.0,61859.0,1.328087]
[1722670470771,0.00083,61860.0,61859.0,1.342087]
[1722670470923,0.00083,61860.0,61859.0,1.356087]
[1722670474444,0.00083,61860.0,61859.0,1.47891104]
[1722670474651,0.00083,61860.0,61859.0,1.47899902]
[1722670474873,0.00083,61860.0,61859.0,1.47899932]
[1722670475645,0.00083,61860.0,61859.0,1.54969932]
[1722670475840,0.00083,61860.0,61859.0,1.55169932]
[1722670476674,0.00083,61860.0,61859.0,1.53769932]
[1722670476874,0.00083,61860.0,61859.0,1.69315856]
[1722670477247,0.00083,61860.0,61859.0,1.70615856]
[1722670477452,0.00911,61861.0,61859.0,1.70615856]
[1722670477453,0.00739,61861.0,61860.0,1.101173]
[1722670477658,0.00739,61861.0,61860.0,1.35863224]
[1722670477873,0.00739,61861.0,61860.0,1.34863224]
[1722670478074,0.00739,61861.0,61860.0,1.40483224]
[1722670479305,0.00739,61861.0,61860.0,1.41883224]
[1722670479518,0.00739,61861.0,61860.0,1.43283224]
[1722670482981,0.00739,61861.0,61860.0,1.37663224]
[1722670483220,0.00739,61861.0,61860.0,1.43283224]
[1722670485430,0.00739,61861.0,61860.0,1.39870661]
[1722670485610,0.00739,61861.0,61860.0,1.275373]
[1722670486556,0.00739,61861.0,61860.0,1.39863448]
[1722670488052,0.06323,61864.0,61863.0,0.0562]
[1722670488684,0.06323,61864.0,61863.0,0.904848]
[1722670488885,0.06323,61864.0,61863.0,1.004848]
[1722670489288,0.06323,61864.0,61863.0,1.029848]
[1722670492595,0.14023,61864.0,61863.0,0.488706]
[1722670493058,0.14023,61864.0,61863.0,0.125]
[1722670493273,0.14023,61864.0,61863.0,0.246235]
[1722670493696,0.14023,61864.0,61863.0,0.125]
[1722670494115,0.14023,61864.0,61863.0,0.025]
[1722670494329,0.14023,61864.0,61863.0,0.125]
[1722670495012,0.14023,61864.0,61863.0,0.477706]
[1722670495226,0.14023,61864.0,61863.0,0.227235]
[1722670495652,0.14023,61864.0,61863.0,0.236235]
[1722670495866,0.14023,61864.0,61863.0,0.221235]
[1722670496073,0.14023,61864.0,61863.0,0.234235]
[1722670496774,0.14023,61864.0,61863.0,0.476706]
[1722670499969,0.00911,61865.0,61864.0,1.973613]
[1722670500583,0.00911,61865.0,61864.0,1.85238]
[1722670500835,0.00911,61865.0,61864.0,1.973613]
[1722670501092,0.00911,61865.0,61864.0,1.85238]
[1722670501817,0.00911,61865.0,61864.0,1.973613]
[1722670502530,0.00911,61865.0,61864.0,1.85638]
[1722670503031,0.15241,61865.0,61864.0,1.85638]
[1722670503264,0.15241,61865.0,61864.0,1.86338]
[1722670505183,0.15241,61865.0,61864.0,1.85938]
[1722670505418,0.15241,61865.0,61864.0,1.85238]
[1722670505651,0.15241,61865.0,61864.0,1.85538]
[1722670505869,0.15241,61865.0,61864.0,1.86038]
[1722670507035,0.15241,61865.0,61864.0,1.981613]
[1722670507449,0.15241,61865.0,61864.0,1.86038]
[1722670507655,0.91602624,61865.0,61864.0,1.86038]
[1722670507874,0.98867536,61865.0,61864.0,1.86038]
[1722670508080,0.91602624,61865.0,61864.0,1.86038]
[1722670508323,1.0905373,61865.0,61864.0,1.86038]
[1722670508511,1.09064944,61865.0,61864.0,1.86038]
[1722670508718,1.09064944,61865.0,61864.0,1.85738]
[1722670508920,1.09064944,61865.0,61864.0,1.85338]
[1722670509356,0.99367309,61865.0,61864.0,1.85238]
[1722670509556,0.91602624,61865.0,61864.0,1.85238]
[1722670509761,0.91602624,61865.0,61864.0,1.85338]
[1722670509967,0.99570144,61865.0,61864.0,1.85338]
[1722670510389,1.1168716,61865.0,61864.0,1.85338]
[1722670512481,1.0391964,61865.0,61864.0,1.85338]
[1722670512692,1.11630025,61865.0,61864.0,1.85338]
[1722670513120,1.11626851,61865.0,61864.0,1.85338]
[1722670513527,0.99513009,61865.0,61864.0,1.85338]
[1722670514116,1.23759309,61865.0,61864.0,1.85338]
[1722670515636,1.24759309,61865.0,61864.0,1.85338]
[1722670515849,1.77651817,61865.0,61864.0,1.85338]
[1722670516084,1.62994182,61865.0,61864.0,1.85338]
[1722670516504,1.62921535,61865.0,61864.0,1.85238]
[1722670516718,1.62921535,61865.0,61864.0,1.85338]
[1722670517827,1.62721535,61865.0,61864.0,1.85338]
[1722670518040,1.63421535,61865.0,61864.0,1.85438]
[1722670518490,1.79775222,61865.0,61864.0,1.85438]
[1722670518707,1.63421535,61865.0,61864.0,1.85338]
[1722670518936,1.63421535,61865.0,61864.0,1.85438]
[1722670518937,2.05127835,61865.0,61864.0,1.85438]
[1722670519150,2.29754107,61865.0,61864.0,1.136535]
[1722670519368,2.20947824,61865.0,61864.0,1.04198348]
[1722670519582,2.28641888,61865.0,61864.0,1.04198348]
[1722670519807,2.30841888,61865.0,61864.0,1.04398348]
[1722670520025,2.45364746,61865.0,61864.0,1.04398348]
[1722670520243,2.30841888,61865.0,61864.0,1.04398348]
[1722670521120,2.28641888,61865.0,61864.0,1.04198348]
[1722670521328,2.28641888,61865.0,61864.0,1.04298348]
[1722670521329,2.30041888,61865.0,61864.0,1.04298348]
[1722670522413,2.28641888,61865.0,61864.0,1.04198348]
[1722670522631,2.32427005,61865.0,61864.0,1.04198348]
[1722670522865,2.23332941,61865.0,61864.0,1.04198348]
[1722670523090,2.30981195,61865.0,61864.0,1.04198348]
[1722670524224,2.29581195,61865.0,61864.0,1.04198348]
[1722670524448,2.30981195,61865.0,61864.0,1.04298348]
[1722670524896,2.30981195,61865.0,61864.0,0.55338348]
[1722670525328,2.29581195,61865.0,61864.0,0.55238348]
[1722670525544,2.32381195,61865.0,61864.0,0.55438348]
[1722670525754,2.44452771,61865.0,61864.0,0.55438348]
[1722670525958,2.43052771,61865.0,61864.0,0.55338348]
[1722670526169,2.44452771,61865.0,61864.0,0.55438348]
[1722670526595,2.44450478,61865.0,61864.0,0.52205448]
[1722670527221,2.44461286,61865.0,61864.0,0.52205448]
[1722670527644,2.44461286,61865.0,61864.0,0.48972548]
[1722670527851,2.44461286,61865.0,61864.0,0.36040948]
[1722670527852,2.32392003,61865.0,61864.0,0.36040948]
[1722670528071,2.44461286,61865.0,61864.0,0.34906976]
[1722670528279,2.32392003,61865.0,61864.0,0.28441176]
[1722670528492,2.44461286,61865.0,61864.0,0.21975376]
[1722670528917,2.44461286,61865.0,61864.0,0.18742476]
[1722670529134,2.44457364,61865.0,61864.0,0.18742476]
[1722670529336,2.32392003,61865.0,61864.0,0.18742476]
[1722670530193,2.32378971,61865.0,61864.0,0.18742476]
[1722670532104,2.08132671,61865.0,61864.0,0.18742476]
[1722670533632,2.17782241,61865.0,61864.0,0.18742476]
[1722670534130,2.08113216,61865.0,61864.0,0.18742476]
[1722670534362,2.17762786,61865.0,61864.0,0.18742476]
[1722670535044,2.08113216,61865.0,61864.0,0.18742476]
[1722670535274,2.17762932,61865.0,61864.0,0.18742476]
[1722670535509,2.08113216,61865.0,61864.0,0.18742476]
[1722670537472,2.00467186,61865.0,61864.0,0.18742476]
[1722670537807,2.20090377,61865.0,61864.0,0.18742476]
[1722670538014,2.08027283,61865.0,61864.0,0.18742476]
[1722670538431,2.16938263,61865.0,61864.0,0.18742476]
[1722670538793,2.16943649,61865.0,61864.0,0.18742476]
[1722670540730,2.23410274,61865.0,61864.0,0.18742476]
[1722670542395,2.23410274,61865.0,61864.0,0.02469127]
[1722670544415,2.23224855,61865.0,61864.0,0.02469127]
[1722670545451,2.34363698,61865.0,61864.0,0.02469127]
[1722670548016,2.34530279,61865.0,61864.0,0.02469127]
[1722670548436,2.34627405,61865.0,61864.0,0.02469127]
[1722670549518,2.40247405,61865.0,61864.0,0.02469127]
[1722670551396,2.54746869,61865.0,61864.0,0.02469127]
[1722670551607,2.40247405,61865.0,61864.0,0.02469127]
[1722670551810,2.40437452,61865.0,61864.0,0.02469127]
[1722670555279,2.12562886,61865.0,61864.0,0.02469127]
[1722670555501,2.40553839,61865.0,61864.0,0.02469127]
[1722670558843,2.12562886,61865.0,61864.0,0.02469127]
[1722670559056,2.49786269,61865.0,61864.0,0.02469127]
[1722670559262,2.4062449,61865.0,61864.0,0.02469127]
[1722670559472,2.49785729,61865.0,61864.0,0.02469127]
[1722670560744,2.44165729,61865.0,61864.0,0.02469127]
[1722670560977,2.43555729,61865.0,61864.0,0.02469127]
[1722670561445,2.43602773,61865.0,61864.0,0.02469127]
[1722670561890,2.34440975,61865.0,61864.0,0.02469127]
[1722670562124,2.26340975,61865.0,61864.0,0.02469127]
[1722670562346,2.50233317,61865.0,61864.0,0.02469127]
[1722670562555,2.26340975,61865.0,61864.0,0.02469127]
[1722670562761,2.50233317,61865.0,61864.0,0.02469127]
[1722670563250,1.55168375,61865.0,61864.0,0.16379127]
[1722670563489,1.75034675,61865.0,61864.0,0.16379127]
[1722670564615,1.73800255,61865.0,61864.0,0.16379127]
[1722670564823,1.56926586,61865.0,61864.0,0.16379127]
[1722670565036,1.73375616,61865.0,61864.0,0.16379127]
[1722670567018,1.33633616,61865.0,61864.0,0.16279127]
[1722670567249,1.37853616,61865.0,61864.0,0.16179127]
[1722670567486,1.37853616,61865.0,61864.0,0.16279127]
[1722670567487,1.39253616,61865.0,61864.0,0.16279127]
[1722670567729,1.33633616,61865.0,61864.0,0.16279127]
[1722670567950,1.35033616,61865.0,61864.0,0.16379127]
[1722670568190,1.33633616,61865.0,61864.0,0.16279127]
[1722670568650,1.35033616,61865.0,61864.0,0.16379127]
[1722670569158,1.33973388,61865.0,61864.0,0.16279127]
[1722670569437,1.53748574,61865.0,61864.0,0.16379127]
[1722670569647,1.37373388,61865.0,61864.0,0.16379127]
[1722670569855,1.35973388,61865.0,61864.0,0.16279127]
[1722670570095,1.37373388,61865.0,61864.0,0.16379127]
[1722670570326,1.5374587,61865.0,61864.0,0.16379127]
[1722670571563,1.53743506,61865.0,61864.0,0.16379127]